[Event "Titled Tuesday Blitz July 18 Early 2023"]
[White "Vasques, Antonio Pedro Freixial"]
[Black "Pajeken, Jakob Leon"]
[WhiteFideId "1908332"]
[BlackFideId "12942839"]
[WhiteElo "2319"]
[BlackElo "2489"]
[Result "0-1"]
[Round "4"]
[TimeControl "180+2"]
[Date "2023.07.18"]
[WhiteClock "0:00:35"]
[BlackClock "0:01:51"]
[Board "148"]

1. e4 {[%clk 0:03:00]}  e5 {[%clk 0:02:58]} 2. Nf3 {[%clk 0:03:00]}  Nc6 {[%clk 0:02:58]} 3. Bc4 {[%clk 0:02:56]}  Bc5 {[%clk 0:02:57]} 4. O-O {[%clk 0:02:56]}  Nf6 {[%clk 0:02:58]} 5. d4 {[%clk 0:02:56]}  Bxd4 {[%clk 0:02:58]} 6. Nxd4 {[%clk 0:02:55]}  Nxd4 {[%clk 0:02:59]} 7. Bg5 {[%clk 0:02:56]}  Ne6 {[%clk 0:02:58]} 8. Bxe6 {[%clk 0:02:48]}  dxe6 {[%clk 0:02:58]} 9. Qxd8+ {[%clk 0:02:48]}  Kxd8 {[%clk 0:02:59]} 10. f4 {[%clk 0:02:48]}  Ke8 {[%clk 0:03:00]} 11. fxe5 {[%clk 0:02:48]}  Nd7 {[%clk 0:03:00]} 12. Bf4 {[%clk 0:02:46]}  b6 {[%clk 0:03:00]} 13. Nc3 {[%clk 0:02:46]}  a6 {[%clk 0:03:01]} 14. Rf2 {[%clk 0:02:42]}  Bb7 {[%clk 0:03:00]} 15. b4 {[%clk 0:02:41]}  h6 {[%clk 0:02:57]} 16. Bg3 {[%clk 0:02:38]}  Ke7 {[%clk 0:02:55]} 17. Raf1 {[%clk 0:02:36]}  Rhf8 {[%clk 0:02:53]} 18. a3 {[%clk 0:02:37]}  Bc6 {[%clk 0:02:39]} 19. Rd2 {[%clk 0:02:29]}  a5 {[%clk 0:02:38]} 20. b5 {[%clk 0:02:22]}  Bb7 {[%clk 0:02:38]} 21. Bh4+ {[%clk 0:02:20]}  g5 {[%clk 0:02:35]} 22. Bg3 {[%clk 0:02:19]}  Nc5 {[%clk 0:02:34]} 23. h4 {[%clk 0:02:18]}  Rad8 {[%clk 0:02:25]} 24. Rdf2 {[%clk 0:02:13]}  Bxe4 {[%clk 0:02:20]} 25. Rf6 {[%clk 0:02:08]}  Bg6 {[%clk 0:02:19]} 26. hxg5 {[%clk 0:01:21]}  hxg5 {[%clk 0:02:19]} 27. Bf2 {[%clk 0:01:22]}  Nd7 {[%clk 0:02:19]} 28. Be3 {[%clk 0:01:16]}  Nxf6 {[%clk 0:02:17]} 29. Bxg5 {[%clk 0:01:16]}  Rd4 {[%clk 0:02:13]} 30. Bxf6+ {[%clk 0:01:14]}  Kd7 {[%clk 0:02:13]} 31. Ne2 {[%clk 0:01:15]}  Rd2 {[%clk 0:02:10]} 32. Nf4 {[%clk 0:01:14]}  Bxc2 {[%clk 0:02:09]} 33. g4 {[%clk 0:01:09]}  Ba4 {[%clk 0:02:03]} 34. g5 {[%clk 0:01:07]}  Bxb5 {[%clk 0:02:03]} 35. Nh5 {[%clk 0:00:58]}  Bc6 {[%clk 0:01:59]} 36. Rf2 {[%clk 0:00:55]}  Rxf2 {[%clk 0:01:58]} 37. Kxf2 {[%clk 0:00:55]}  Bd5 {[%clk 0:01:58]} 38. Bg7 {[%clk 0:00:55]}  Ra8 {[%clk 0:01:56]} 39. Ke3 {[%clk 0:00:52]}  c5 {[%clk 0:01:56]} 40. Nf6+ {[%clk 0:00:48]}  Kc6 {[%clk 0:01:56]} 41. Nh5 {[%clk 0:00:44]}  b5 {[%clk 0:01:54]} 42. Nf4 {[%clk 0:00:43]}  a4 {[%clk 0:01:53]} 43. Nd3 {[%clk 0:00:42]}  Bc4 {[%clk 0:01:51]} 44. Nb2 {[%clk 0:00:39]}  Bb3 {[%clk 0:01:51]} 45. Bf6 {[%clk 0:00:35]}  b4 {[%clk 0:01:51]} 0-1


[Site "https://www.chess.com"]

[Event "Titled Tuesday Blitz July 18 Early 2023"]
[White "Liu, Casper"]
[Black "Acikel, Mert"]
[WhiteFideId "1454153"]
[BlackFideId "12956465"]
[WhiteElo "2472"]
[BlackElo "2312"]
[Result "0-1"]
[Round "4"]
[TimeControl "180+2"]
[Date "2023.07.18"]
[WhiteClock "0:02:04"]
[BlackClock "0:00:49"]
[Board "151"]

1. e4 {[%clk 0:03:00]}  e5 {[%clk 0:02:59]} 2. d4 {[%clk 0:03:00]}  exd4 {[%clk 0:03:00]} 3. Qxd4 {[%clk 0:03:01]}  Nc6 {[%clk 0:03:00]} 4. Qe3 {[%clk 0:03:01]}  Nf6 {[%clk 0:03:00]} 5. Nc3 {[%clk 0:03:02]}  Bb4 {[%clk 0:03:01]} 6. Bd2 {[%clk 0:03:03]}  O-O {[%clk 0:03:01]} 7. O-O-O {[%clk 0:03:03]}  Re8 {[%clk 0:03:02]} 8. Bc4 {[%clk 0:03:03]}  d6 {[%clk 0:02:58]} 9. Nh3 {[%clk 0:03:01]}  Bc5 {[%clk 0:02:55]} 10. Qg3 {[%clk 0:02:58]}  Be6 {[%clk 0:02:48]} 11. Bh6 {[%clk 0:02:56]}  Nh5 {[%clk 0:02:39]} 12. Qf3 {[%clk 0:02:55]}  Bxc4 {[%clk 0:02:23]} 13. Qxh5 {[%clk 0:02:55]}  gxh6 {[%clk 0:02:22]} 14. Qxh6 {[%clk 0:02:55]}  Re6 {[%clk 0:02:17]} 15. Qh5 {[%clk 0:02:56]}  Qf6 {[%clk 0:02:10]} 16. Nd5 {[%clk 0:02:47]}  Qh6+ {[%clk 0:02:00]} 17. Qg5+ {[%clk 0:02:22]}  Qxg5+ {[%clk 0:01:52]} 18. Nxg5 {[%clk 0:02:22]}  Rg6 {[%clk 0:01:52]} 19. h4 {[%clk 0:02:15]}  Bxd5 {[%clk 0:01:51]} 20. Rxd5 {[%clk 0:02:14]}  Bxf2 {[%clk 0:01:48]} 21. Rf5 {[%clk 0:02:07]}  Be3+ {[%clk 0:01:47]} 22. Kd1 {[%clk 0:02:07]}  Bxg5 {[%clk 0:01:48]} 23. hxg5 {[%clk 0:02:07]}  Ne5 {[%clk 0:01:48]} 24. Ke2 {[%clk 0:02:06]}  Re8 {[%clk 0:01:45]} 25. Ke3 {[%clk 0:02:05]}  Ng4+ {[%clk 0:01:35]} 26. Kf4 {[%clk 0:02:06]}  Ne5 {[%clk 0:01:28]} 27. Ke3 {[%clk 0:02:06]}  c6 {[%clk 0:01:24]} 28. Rd1 {[%clk 0:02:04]}  Rge6 {[%clk 0:01:09]} 29. Rf4 {[%clk 0:01:58]}  Ng6 {[%clk 0:01:06]} 30. Rg4 {[%clk 0:01:58]}  d5 {[%clk 0:01:05]} 31. Rd4 {[%clk 0:01:57]}  Rxe4+ {[%clk 0:01:04]} 32. Rgxe4 {[%clk 0:01:57]}  Rxe4+ {[%clk 0:01:05]} 33. Rxe4 {[%clk 0:01:57]}  dxe4 {[%clk 0:01:06]} 34. Kxe4 {[%clk 0:01:58]}  Kf8 {[%clk 0:01:05]} 35. Kf5 {[%clk 0:01:58]}  Ke7 {[%clk 0:01:05]} 36. g3 {[%clk 0:01:58]}  Nf8 {[%clk 0:01:05]} 37. a4 {[%clk 0:01:58]}  a5 {[%clk 0:01:03]} 38. Ke5 {[%clk 0:01:57]}  Ne6 {[%clk 0:01:03]} 39. Kf5 {[%clk 0:01:58]}  Nd4+ {[%clk 0:01:03]} 40. Kg4 {[%clk 0:01:57]}  Nxc2 {[%clk 0:01:04]} 41. Kh5 {[%clk 0:01:58]}  Kf8 {[%clk 0:01:02]} 42. Kg4 {[%clk 0:01:55]}  Nb4 {[%clk 0:01:01]} 43. Kf5 {[%clk 0:01:56]}  Nd3 {[%clk 0:01:01]} 44. b3 {[%clk 0:01:56]}  Nc5 {[%clk 0:01:02]} 45. Ke5 {[%clk 0:01:56]}  Nxb3 {[%clk 0:01:02]} 46. Kd6 {[%clk 0:01:57]}  c5 {[%clk 0:01:00]} 47. Kd5 {[%clk 0:01:57]}  b6 {[%clk 0:00:59]} 48. Kc4 {[%clk 0:01:57]}  Nd2+ {[%clk 0:01:00]} 49. Kb5 {[%clk 0:01:58]}  Ne4 {[%clk 0:00:59]} 50. Kxb6 {[%clk 0:01:58]}  c4 {[%clk 0:01:00]} 51. Kxa5 {[%clk 0:01:59]}  c3 {[%clk 0:01:00]} 52. Kb5 {[%clk 0:01:58]}  c2 {[%clk 0:01:01]} 53. a5 {[%clk 0:01:58]}  c1=Q {[%clk 0:01:01]} 54. a6 {[%clk 0:01:59]}  Qa1 {[%clk 0:01:02]} 55. g6 {[%clk 0:01:58]}  fxg6 {[%clk 0:01:00]} 56. g4 {[%clk 0:01:59]}  Nf6 {[%clk 0:01:00]} 57. g5 {[%clk 0:02:00]}  Ne4 {[%clk 0:00:59]} 58. Kb6 {[%clk 0:02:00]}  Nxg5 {[%clk 0:00:59]} 59. a7 {[%clk 0:02:00]}  h5 {[%clk 0:00:59]} 60. Kb7 {[%clk 0:02:01]}  h4 {[%clk 0:00:58]} 61. Ka8 {[%clk 0:02:02]}  Qxa7+ {[%clk 0:00:57]} 62. Kxa7 {[%clk 0:02:01]}  h3 {[%clk 0:00:57]} 63. Kb8 {[%clk 0:02:01]}  Ke7 {[%clk 0:00:56]} 64. Kc7 {[%clk 0:02:02]}  h2 {[%clk 0:00:55]} 65. Kc6 {[%clk 0:02:02]}  Ke6 {[%clk 0:00:55]} 66. Kc5 {[%clk 0:02:03]}  Ke5 {[%clk 0:00:54]} 67. Kc6 {[%clk 0:02:03]}  h1=Q+ {[%clk 0:00:54]} 68. Kd7 {[%clk 0:02:04]}  Qb7+ {[%clk 0:00:52]} 69. Ke8 {[%clk 0:02:04]}  Ke6 {[%clk 0:00:49]} 0-1


[Site "https://www.chess.com"]

[Event "Titled Tuesday Blitz July 18 Early 2023"]
[White "Travadon, Loic"]
[Black "WindWhistler11"]
[WhiteFideId "26092131"]
[WhiteElo "2304"]
[BlackElo "2467"]
[Result "1-0"]
[Round "4"]
[TimeControl "180+2"]
[Date "2023.07.18"]
[WhiteClock "0:00:59"]
[BlackClock "0:00:00"]
[Board "153"]

1. d4 {[%clk 0:03:00]}  f5 {[%clk 0:02:57]} 2. c4 {[%clk 0:02:55]}  Nf6 {[%clk 0:02:57]} 3. Nc3 {[%clk 0:02:54]}  g6 {[%clk 0:02:57]} 4. f3 {[%clk 0:02:51]}  c5 {[%clk 0:02:54]} 5. e4 {[%clk 0:02:45]}  cxd4 {[%clk 0:02:53]} 6. Qxd4 {[%clk 0:02:45]}  Nc6 {[%clk 0:02:53]} 7. Qd1 {[%clk 0:02:44]}  fxe4 {[%clk 0:02:35]} 8. fxe4 {[%clk 0:02:43]}  Bg7 {[%clk 0:02:34]} 9. Nf3 {[%clk 0:02:40]}  O-O {[%clk 0:02:33]} 10. Be2 {[%clk 0:02:37]}  e6 {[%clk 0:02:09]} 11. O-O {[%clk 0:02:36]}  Qb6+ {[%clk 0:02:08]} 12. Kh1 {[%clk 0:02:35]}  Ng4 {[%clk 0:02:07]} 13. Qe1 {[%clk 0:02:31]}  Ne3 {[%clk 0:01:38]} 14. Bxe3 {[%clk 0:02:23]}  Qxe3 {[%clk 0:01:38]} 15. Bd1 {[%clk 0:02:17]}  Qxe1 {[%clk 0:01:10]} 16. Rxe1 {[%clk 0:02:18]}  Nb4 {[%clk 0:01:09]} 17. Re3 {[%clk 0:02:07]}  Bh6 {[%clk 0:01:06]} 18. Re2 {[%clk 0:02:03]}  b6 {[%clk 0:01:01]} 19. a3 {[%clk 0:01:58]}  Nd3 {[%clk 0:00:57]} 20. Ba4 {[%clk 0:01:54]}  Nc5 {[%clk 0:00:53]} 21. Bc2 {[%clk 0:01:46]}  Ba6 {[%clk 0:00:51]} 22. b3 {[%clk 0:01:46]}  Bg7 {[%clk 0:00:50]} 23. Re3 {[%clk 0:01:43]}  Bb7 {[%clk 0:00:25]} 24. Rae1 {[%clk 0:01:28]}  Bh6 {[%clk 0:00:23]} 25. R3e2 {[%clk 0:01:25]}  a5 {[%clk 0:00:16]} 26. Rd1 {[%clk 0:01:24]}  Rad8 {[%clk 0:00:12]} 27. Nb5 {[%clk 0:01:22]}  d5 {[%clk 0:00:09]} 28. exd5 {[%clk 0:01:14]}  exd5 {[%clk 0:00:10]} 29. b4 {[%clk 0:01:13]}  axb4 {[%clk 0:00:09]} 30. axb4 {[%clk 0:01:14]}  Na6 {[%clk 0:00:04]} 31. cxd5 {[%clk 0:01:12]}  Nxb4 {[%clk 0:00:04]} 32. Bb3 {[%clk 0:01:11]}  Bxd5 {[%clk 0:00:00]} 33. Rxd5 {[%clk 0:00:59]} 1-0


[Site "https://www.chess.com"]

[Event "Titled Tuesday Blitz July 18 Early 2023"]
[White "lgabi"]
[Black "Bochnicka, Vladimir"]
[BlackFideId "14943450"]
[WhiteElo "2296"]
[BlackElo "2460"]
[Result "1-0"]
[Round "4"]
[TimeControl "180+2"]
[Date "2023.07.18"]
[WhiteClock "0:02:07"]
[BlackClock "0:01:08"]
[Board "155"]

1. e4 {[%clk 0:03:00]}  c5 {[%clk 0:02:59]} 2. Nf3 {[%clk 0:03:00]}  Nc6 {[%clk 0:03:00]} 3. Bb5 {[%clk 0:03:00]}  e6 {[%clk 0:03:00]} 4. Bxc6 {[%clk 0:02:59]}  bxc6 {[%clk 0:03:00]} 5. b3 {[%clk 0:03:00]}  Ne7 {[%clk 0:02:54]} 6. Bb2 {[%clk 0:02:58]}  Ng6 {[%clk 0:02:55]} 7. h4 {[%clk 0:02:55]}  h5 {[%clk 0:02:54]} 8. e5 {[%clk 0:02:51]}  Be7 {[%clk 0:02:46]} 9. d3 {[%clk 0:02:48]}  Nxh4 {[%clk 0:02:41]} 10. Nxh4 {[%clk 0:02:46]}  Bxh4 {[%clk 0:02:42]} 11. g3 {[%clk 0:02:45]}  Be7 {[%clk 0:02:39]} 12. Rxh5 {[%clk 0:02:45]}  Rxh5 {[%clk 0:02:38]} 13. Qxh5 {[%clk 0:02:46]}  g6 {[%clk 0:02:31]} 14. Qh8+ {[%clk 0:02:34]}  Bf8 {[%clk 0:02:31]} 15. Nd2 {[%clk 0:02:34]}  Bb7 {[%clk 0:01:56]} 16. Ne4 {[%clk 0:02:30]}  d5 {[%clk 0:01:08]} 17. exd6 {[%clk 0:02:07]} 1-0


[Site "https://www.chess.com"]

[Event "Titled Tuesday Blitz July 18 Early 2023"]
[White "Begunov, Konstantin"]
[Black "Wang, Alexander J"]
[WhiteFideId "4118510"]
[BlackFideId "30955270"]
[WhiteElo "2458"]
[BlackElo "2294"]
[Result "1-0"]
[Round "4"]
[TimeControl "180+2"]
[Date "2023.07.18"]
[WhiteClock "0:00:07"]
[BlackClock "0:00:04"]
[Board "157"]

1. d4 {[%clk 0:03:00]}  d5 {[%clk 0:02:59]} 2. c4 {[%clk 0:03:01]}  e6 {[%clk 0:02:59]} 3. Nc3 {[%clk 0:03:01]}  c5 {[%clk 0:02:58]} 4. cxd5 {[%clk 0:03:02]}  exd5 {[%clk 0:02:59]} 5. Nf3 {[%clk 0:03:02]}  Nc6 {[%clk 0:02:59]} 6. g3 {[%clk 0:03:02]}  Nf6 {[%clk 0:02:58]} 7. Bg2 {[%clk 0:03:02]}  Be7 {[%clk 0:02:59]} 8. O-O {[%clk 0:03:02]}  O-O {[%clk 0:02:51]} 9. Bg5 {[%clk 0:03:02]}  c4 {[%clk 0:02:46]} 10. b3 {[%clk 0:03:00]}  Qa5 {[%clk 0:02:39]} 11. Bd2 {[%clk 0:02:39]}  Bb4 {[%clk 0:02:33]} 12. Qc2 {[%clk 0:02:33]}  b5 {[%clk 0:01:46]} 13. a4 {[%clk 0:01:28]}  Bxc3 {[%clk 0:01:42]} 14. axb5 {[%clk 0:01:27]}  Qxb5 {[%clk 0:01:42]} 15. bxc4 {[%clk 0:01:21]}  Qxc4 {[%clk 0:01:38]} 16. Qxc3 {[%clk 0:01:14]}  Qxc3 {[%clk 0:01:17]} 17. Bxc3 {[%clk 0:01:14]}  Ne4 {[%clk 0:01:16]} 18. Bb2 {[%clk 0:01:10]}  Be6 {[%clk 0:01:13]} 19. Rfc1 {[%clk 0:01:08]}  Rfc8 {[%clk 0:01:04]} 20. Ne5 {[%clk 0:01:08]}  Nxe5 {[%clk 0:01:02]} 21. dxe5 {[%clk 0:01:01]}  Nc5 {[%clk 0:00:50]} 22. Ba3 {[%clk 0:00:44]}  Nb3 {[%clk 0:00:48]} 23. Rxc8+ {[%clk 0:00:44]}  Rxc8 {[%clk 0:00:49]} 24. Rb1 {[%clk 0:00:41]}  Nd4 {[%clk 0:00:46]} 25. e3 {[%clk 0:00:36]}  Nc6 {[%clk 0:00:44]} 26. Rc1 {[%clk 0:00:32]}  a5 {[%clk 0:00:28]} 27. f4 {[%clk 0:00:25]}  g6 {[%clk 0:00:25]} 28. e4 {[%clk 0:00:25]}  dxe4 {[%clk 0:00:18]} 29. Bxe4 {[%clk 0:00:26]}  Bd7 {[%clk 0:00:18]} 30. Kf2 {[%clk 0:00:22]}  Nb4 {[%clk 0:00:16]} 31. Rxc8+ {[%clk 0:00:21]}  Bxc8 {[%clk 0:00:17]} 32. Ke3 {[%clk 0:00:21]}  Be6 {[%clk 0:00:16]} 33. Kd4 {[%clk 0:00:20]}  Na6 {[%clk 0:00:14]} 34. Bb7 {[%clk 0:00:17]}  Nc7 {[%clk 0:00:14]} 35. Bc6 {[%clk 0:00:17]}  Kg7 {[%clk 0:00:11]} 36. Bd6 {[%clk 0:00:16]}  Na6 {[%clk 0:00:10]} 37. Bb5 {[%clk 0:00:15]}  Nb4 {[%clk 0:00:10]} 38. Kc3 {[%clk 0:00:15]}  Nd5+ {[%clk 0:00:10]} 39. Kd4 {[%clk 0:00:14]}  Nb4 {[%clk 0:00:10]} 40. Bc7 {[%clk 0:00:12]}  Nc2+ {[%clk 0:00:10]} 41. Kc3 {[%clk 0:00:12]}  Ne1 {[%clk 0:00:10]} 42. Bc6 {[%clk 0:00:11]}  Bg4 {[%clk 0:00:09]} 43. Bxa5 {[%clk 0:00:09]}  Bf3 {[%clk 0:00:06]} 44. Bb5 {[%clk 0:00:08]}  Be4 {[%clk 0:00:06]} 45. Kd4 {[%clk 0:00:08]}  Bb7 {[%clk 0:00:04]} 46. Bxe1 {[%clk 0:00:07]} 1-0


[Site "https://www.chess.com"]

[Event "Titled Tuesday Blitz July 18 Early 2023"]
[White "Mikhaylova, Irina"]
[Black "Aakanksha Hagawane"]
[WhiteFideId "4109040"]
[BlackFideId "25014510"]
[WhiteElo "2289"]
[BlackElo "2456"]
[Result "1-0"]
[Round "4"]
[TimeControl "180+2"]
[Date "2023.07.18"]
[WhiteClock "0:00:22"]
[BlackClock "0:00:00"]
[Board "158"]

1. d4 {[%clk 0:03:00]}  Nf6 {[%clk 0:02:53]} 2. Nf3 {[%clk 0:03:01]}  c5 {[%clk 0:02:52]} 3. c4 {[%clk 0:03:01]}  cxd4 {[%clk 0:02:50]} 4. Nxd4 {[%clk 0:03:01]}  Nc6 {[%clk 0:02:51]} 5. Nc3 {[%clk 0:02:58]}  e6 {[%clk 0:02:43]} 6. e3 {[%clk 0:02:55]}  Be7 {[%clk 0:02:34]} 7. Be2 {[%clk 0:02:55]}  O-O {[%clk 0:02:32]} 8. O-O {[%clk 0:02:56]}  b6 {[%clk 0:02:29]} 9. b3 {[%clk 0:02:56]}  Bb7 {[%clk 0:02:27]} 10. Bb2 {[%clk 0:02:56]}  Rc8 {[%clk 0:02:27]} 11. Rc1 {[%clk 0:02:56]}  Ne5 {[%clk 0:01:53]} 12. Ndb5 {[%clk 0:02:18]}  a6 {[%clk 0:01:05]} 13. Nd6 {[%clk 0:02:16]}  Rb8 {[%clk 0:01:04]} 14. Nxb7 {[%clk 0:02:11]}  Rxb7 {[%clk 0:01:04]} 15. f4 {[%clk 0:01:45]}  Ng6 {[%clk 0:00:58]} 16. Bf3 {[%clk 0:01:25]}  Rc7 {[%clk 0:00:56]} 17. Ne4 {[%clk 0:01:25]}  Nxe4 {[%clk 0:00:47]} 18. Bxe4 {[%clk 0:01:24]}  Bc5 {[%clk 0:00:46]} 19. Bd4 {[%clk 0:01:20]}  f5 {[%clk 0:00:37]} 20. Bf3 {[%clk 0:01:07]}  Qe7 {[%clk 0:00:32]} 21. Qd3 {[%clk 0:01:02]}  Kh8 {[%clk 0:00:16]} 22. Rcd1 {[%clk 0:00:34]}  e5 {[%clk 0:00:16]} 23. fxe5 {[%clk 0:00:28]}  Nxe5 {[%clk 0:00:15]} 24. Qe2 {[%clk 0:00:28]}  Nxf3+ {[%clk 0:00:12]} 25. Qxf3 {[%clk 0:00:28]}  Rc6 {[%clk 0:00:11]} 26. Bxc5 {[%clk 0:00:21]}  bxc5 {[%clk 0:00:09]} 27. Rd5 {[%clk 0:00:21]}  g6 {[%clk 0:00:09]} 28. e4 {[%clk 0:00:19]}  Re6 {[%clk 0:00:07]} 29. exf5 {[%clk 0:00:19]}  gxf5 {[%clk 0:00:07]} 30. Rxf5 {[%clk 0:00:18]}  Rxf5 {[%clk 0:00:06]} 31. Qxf5 {[%clk 0:00:19]}  Re2 {[%clk 0:00:06]} 32. Qf8+ {[%clk 0:00:19]}  Qxf8 {[%clk 0:00:06]} 33. Rxf8+ {[%clk 0:00:19]}  Kg7 {[%clk 0:00:06]} 34. Rf2 {[%clk 0:00:19]}  Re1+ {[%clk 0:00:06]} 35. Rf1 {[%clk 0:00:19]}  Re2 {[%clk 0:00:07]} 36. Rd1 {[%clk 0:00:19]}  Rxa2 {[%clk 0:00:06]} 37. Rxd7+ {[%clk 0:00:20]}  Kg6 {[%clk 0:00:06]} 38. Rd3 {[%clk 0:00:20]}  a5 {[%clk 0:00:05]} 39. h3 {[%clk 0:00:19]}  h5 {[%clk 0:00:03]} 40. Kh2 {[%clk 0:00:19]}  Rb2 {[%clk 0:00:03]} 41. Rd6+ {[%clk 0:00:19]}  Kg7 {[%clk 0:00:01]} 42. Rd5 {[%clk 0:00:19]}  Rxb3 {[%clk 0:00:01]} 43. Rxc5 {[%clk 0:00:19]}  a4 {[%clk 0:00:01]} 44. Rxh5 {[%clk 0:00:19]}  a3 {[%clk 0:00:01]} 45. Ra5 {[%clk 0:00:20]}  Rc3 {[%clk 0:00:01]} 46. c5 {[%clk 0:00:20]}  a2 {[%clk 0:00:02]} 47. Rxa2 {[%clk 0:00:20]}  Rxc5 {[%clk 0:00:02]} 48. Ra6 {[%clk 0:00:20]}  Rc3 {[%clk 0:00:01]} 49. Ra4 {[%clk 0:00:20]}  Rb3 {[%clk 0:00:02]} 50. Rg4+ {[%clk 0:00:21]}  Kf6 {[%clk 0:00:00]} 51. Rg3 {[%clk 0:00:22]} 1-0


[Site "https://www.chess.com"]

[Event "Titled Tuesday Blitz July 18 Early 2023"]
[White "JonSnowNW1"]
[Black "Zampronha, Wladimir Camilo"]
[BlackFideId "2103087"]
[WhiteElo "2451"]
[BlackElo "2285"]
[Result "1-0"]
[Round "4"]
[TimeControl "180+2"]
[Date "2023.07.18"]
[WhiteClock "0:00:28"]
[BlackClock "0:00:07"]
[Board "161"]

1. c4 {[%clk 0:02:59]}  Nf6 {[%clk 0:02:59]} 2. Nc3 {[%clk 0:02:58]}  e6 {[%clk 0:03:00]} 3. e4 {[%clk 0:02:58]}  c5 {[%clk 0:03:00]} 4. g3 {[%clk 0:02:58]}  Nc6 {[%clk 0:02:55]} 5. Bg2 {[%clk 0:02:58]}  d6 {[%clk 0:02:50]} 6. Nge2 {[%clk 0:02:58]}  Be7 {[%clk 0:02:47]} 7. O-O {[%clk 0:02:58]}  O-O {[%clk 0:02:47]} 8. d3 {[%clk 0:02:58]}  Rb8 {[%clk 0:02:46]} 9. h3 {[%clk 0:02:53]}  a6 {[%clk 0:02:46]} 10. a4 {[%clk 0:02:53]}  Ne8 {[%clk 0:02:42]} 11. Be3 {[%clk 0:02:52]}  Nc7 {[%clk 0:02:39]} 12. d4 {[%clk 0:02:51]}  cxd4 {[%clk 0:02:38]} 13. Nxd4 {[%clk 0:02:52]}  Nxd4 {[%clk 0:02:34]} 14. Bxd4 {[%clk 0:02:51]}  b5 {[%clk 0:02:26]} 15. axb5 {[%clk 0:02:45]}  axb5 {[%clk 0:02:27]} 16. Ba7 {[%clk 0:02:44]}  Rb7 {[%clk 0:02:19]} 17. e5 {[%clk 0:02:35]}  d5 {[%clk 0:01:56]} 18. cxd5 {[%clk 0:02:34]}  exd5 {[%clk 0:01:57]} 19. Bd4 {[%clk 0:02:34]}  b4 {[%clk 0:01:51]} 20. Na4 {[%clk 0:02:28]}  Nb5 {[%clk 0:01:39]} 21. Bc5 {[%clk 0:02:24]}  Be6 {[%clk 0:01:35]} 22. Rc1 {[%clk 0:02:17]}  Rc7 {[%clk 0:01:19]} 23. Qd3 {[%clk 0:02:09]}  Qb8 {[%clk 0:00:58]} 24. Bb6 {[%clk 0:01:57]}  Rxc1 {[%clk 0:00:56]} 25. Rxc1 {[%clk 0:01:58]}  Na7 {[%clk 0:00:49]} 26. Qa6 {[%clk 0:01:58]}  Nc8 {[%clk 0:00:47]} 27. Bc7 {[%clk 0:01:58]}  Qa7 {[%clk 0:00:33]} 28. Qb5 {[%clk 0:01:45]}  Bg5 {[%clk 0:00:30]} 29. Rc2 {[%clk 0:01:23]}  Qd4 {[%clk 0:00:29]} 30. Kh2 {[%clk 0:00:43]}  Qd1 {[%clk 0:00:29]} 31. Qe2 {[%clk 0:00:41]}  Qa1 {[%clk 0:00:27]} 32. Nc5 {[%clk 0:00:39]}  d4 {[%clk 0:00:20]} 33. Nxe6 {[%clk 0:00:38]}  fxe6 {[%clk 0:00:21]} 34. Qc4 {[%clk 0:00:37]}  Re8 {[%clk 0:00:18]} 35. Bc6 {[%clk 0:00:35]}  b3 {[%clk 0:00:10]} 36. Qxb3 {[%clk 0:00:34]}  Rf8 {[%clk 0:00:05]} 37. Qxe6+ {[%clk 0:00:33]}  Kh8 {[%clk 0:00:06]} 38. Bd6 {[%clk 0:00:28]}  Nxd6 {[%clk 0:00:06]} 39. Qxd6 {[%clk 0:00:29]}  Qf1 {[%clk 0:00:07]} 40. Qxf8# {[%clk 0:00:28]} 1-0


[Site "https://www.chess.com"]

[Event "Titled Tuesday Blitz July 18 Early 2023"]
[White "Barwinska, Ewa"]
[Black "Matyukov, Petr"]
[WhiteFideId "21833761"]
[BlackFideId "4103688"]
[WhiteElo "2282"]
[BlackElo "2451"]
[Result "1-0"]
[Round "4"]
[TimeControl "180+2"]
[Date "2023.07.18"]
[WhiteClock "0:00:08"]
[BlackClock "0:00:00"]
[Board "162"]

1. e4 {[%clk 0:02:58]}  c6 {[%clk 0:02:59]} 2. d4 {[%clk 0:02:40]}  d5 {[%clk 0:02:58]} 3. exd5 {[%clk 0:02:37]}  cxd5 {[%clk 0:02:59]} 4. Bd3 {[%clk 0:02:34]}  Nc6 {[%clk 0:02:58]} 5. Ne2 {[%clk 0:02:33]}  Qc7 {[%clk 0:02:54]} 6. Bf4 {[%clk 0:02:28]}  Qb6 {[%clk 0:02:53]} 7. b3 {[%clk 0:02:17]}  Bg4 {[%clk 0:02:45]} 8. f3 {[%clk 0:02:12]}  Bh5 {[%clk 0:02:44]} 9. Nd2 {[%clk 0:02:01]}  e6 {[%clk 0:02:38]} 10. c3 {[%clk 0:01:41]}  Nf6 {[%clk 0:02:15]} 11. O-O {[%clk 0:01:34]}  e5 {[%clk 0:02:12]} 12. Be3 {[%clk 0:01:31]}  Bd6 {[%clk 0:02:00]} 13. Kh1 {[%clk 0:01:27]}  Qc7 {[%clk 0:01:50]} 14. dxe5 {[%clk 0:01:17]}  Bxe5 {[%clk 0:01:50]} 15. f4 {[%clk 0:01:15]}  Bxc3 {[%clk 0:01:42]} 16. Rc1 {[%clk 0:01:08]}  Bxd2 {[%clk 0:01:39]} 17. Qxd2 {[%clk 0:01:07]}  O-O {[%clk 0:01:38]} 18. Nd4 {[%clk 0:01:05]}  Rfe8 {[%clk 0:01:34]} 19. Bb5 {[%clk 0:01:01]}  Ne4 {[%clk 0:01:22]} 20. Qb2 {[%clk 0:00:58]}  Ng3+ {[%clk 0:00:44]} 21. hxg3 {[%clk 0:00:58]}  Rxe3 {[%clk 0:00:44]} 22. Nf5 {[%clk 0:00:52]}  d4 {[%clk 0:00:28]} 23. Nxe3 {[%clk 0:00:40]}  dxe3 {[%clk 0:00:29]} 24. Rfe1 {[%clk 0:00:30]}  Qe7 {[%clk 0:00:16]} 25. Bxc6 {[%clk 0:00:27]}  bxc6 {[%clk 0:00:17]} 26. Qe5 {[%clk 0:00:26]}  Qxe5 {[%clk 0:00:09]} 27. fxe5 {[%clk 0:00:27]}  e2 {[%clk 0:00:10]} 28. Rc4 {[%clk 0:00:25]}  Re8 {[%clk 0:00:08]} 29. g4 {[%clk 0:00:25]}  Bg6 {[%clk 0:00:04]} 30. Rxe2 {[%clk 0:00:14]}  Bd3 {[%clk 0:00:03]} 31. Re3 {[%clk 0:00:11]}  Bxc4 {[%clk 0:00:03]} 32. bxc4 {[%clk 0:00:12]}  g6 {[%clk 0:00:02]} 33. Kh2 {[%clk 0:00:12]}  Kg7 {[%clk 0:00:03]} 34. Kg3 {[%clk 0:00:12]}  Re6 {[%clk 0:00:03]} 35. Kf4 {[%clk 0:00:12]}  Kf8 {[%clk 0:00:03]} 36. Ra3 {[%clk 0:00:10]}  g5+ {[%clk 0:00:02]} 37. Kxg5 {[%clk 0:00:07]}  Rxe5+ {[%clk 0:00:02]} 38. Kf4 {[%clk 0:00:08]}  Re7 {[%clk 0:00:02]} 39. Ra6 {[%clk 0:00:08]}  Rc7 {[%clk 0:00:02]} 40. Ke5 {[%clk 0:00:08]}  Ke7 {[%clk 0:00:02]} 41. Kd4 {[%clk 0:00:08]}  Kd6 {[%clk 0:00:01]} 42. c5+ {[%clk 0:00:08]}  Ke6 {[%clk 0:00:00]} 43. Ke4 {[%clk 0:00:08]} 1-0


[Site "https://www.chess.com"]